[Event "*** Titled Tuesday Blitz"]
[Site "Chess.com"]
[Date "2019.01.01"]
[Round "3"]
[White "GremioPrudente"]
[Black "S2PAc"]
[Result "0-1"]
[WhiteElo "2016"]
[BlackElo "2855"]
[TimeControl "180+2"]
[EndTime "13:37:29 PST"]
[Termination "S2PAc won by resignation"]

1. Nf3 {[%clk 0:03:01.9]} 1... g6 {[%clk 0:02:47.2]} 2. d4 {[%clk 0:03:01.7]}
2... Bg7 {[%clk 0:02:47.7]} 3. c3 {[%clk 0:02:57.2]} 3... d6 {[%clk 0:02:48.5]}
4. Bf4 {[%clk 0:02:53.1]} 4... Nc6 {[%clk 0:02:49.5]} 5. e3 {[%clk 0:02:53]}
5... e5 {[%clk 0:02:49.7]} 6. dxe5 {[%clk 0:02:53]} 6... dxe5 {[%clk 0:02:50.8]}
7. Qxd8+ {[%clk 0:02:53.2]} 7... Kxd8 {[%clk 0:02:52.2]} 8. Bg3 {[%clk
0:02:50.2]} 8... f6 {[%clk 0:02:53.5]} 9. Bb5 {[%clk 0:02:42]} 9... Bd7 {[%clk
0:02:53.7]} 10. O-O {[%clk 0:02:32.9]} 10... Ke7 {[%clk 0:02:54.1]} 11. Na3
{[%clk 0:02:31.8]} 11... a6 {[%clk 0:02:54.5]} 12. Be2 {[%clk 0:02:25.1]} 12...
Nh6 {[%clk 0:02:52.1]} 13. Rfd1 {[%clk 0:02:19.3]} 13... Nf5 {[%clk 0:02:51.3]}
14. Nh4 {[%clk 0:02:13.4]} 14... Nd6 {[%clk 0:02:47.1]} 15. Nf3 {[%clk
0:01:59.4]} 15... Nf5 {[%clk 0:02:40.1]} 16. Nh4 {[%clk 0:01:58.7]} 16... Nd6
{[%clk 0:02:41.4]} 17. Nf3 {[%clk 0:01:59.3]} 17... Rad8 {[%clk 0:02:41.1]} 18.
Rd2 {[%clk 0:01:48.3]} 18... Ne4 {[%clk 0:02:40.9]} 19. Rdd1 {[%clk 0:01:42.6]}
19... h5 {[%clk 0:02:41.7]} 20. h3 {[%clk 0:01:21.9]} 20... Nxg3 {[%clk
0:02:41.5]} 21. fxg3 {[%clk 0:01:23.2]} 21... b5 {[%clk 0:02:40.4]} 22. Kf2
{[%clk 0:01:21.4]} 22... Bh6 {[%clk 0:02:39]} 23. e4 {[%clk 0:01:07.5]} 23...
Be6 {[%clk 0:02:37.7]} 24. Rxd8 {[%clk 0:01:04.5]} 24... Rxd8 {[%clk 0:02:39.6]}
25. b3 {[%clk 0:00:57.2]} 25... Bf8 {[%clk 0:02:30.9]} 26. Rd1 {[%clk
0:00:56.2]} 26... Rb8 {[%clk 0:02:30.7]} 27. Nc2 {[%clk 0:00:54.2]} 27... Kf7
{[%clk 0:02:32.1]} 28. Nd2 {[%clk 0:00:47.7]} 28... Bc5+ {[%clk 0:02:32.9]} 29.
Kf1 {[%clk 0:00:46.6]} 29... a5 {[%clk 0:02:34.5]} 30. c4 {[%clk 0:00:41.5]}
30... b4 {[%clk 0:02:32.2]} 31. Nf3 {[%clk 0:00:36.5]} 31... Ke7 {[%clk
0:02:33]} 32. Nh4 {[%clk 0:00:32.4]} 32... Kf7 {[%clk 0:02:33.7]} 33. Nf3 {[%clk
0:00:33.2]} 33... Ra8 {[%clk 0:02:32.7]} 34. Bd3 {[%clk 0:00:16.6]} 34... a4
{[%clk 0:02:32.7]} 35. Ke2 {[%clk 0:00:16.5]} 35... g5 {[%clk 0:02:30.2]} 36.
Rb1 {[%clk 0:00:15.6]} 36... Ke7 {[%clk 0:02:31.7]} 37. Nd2 {[%clk 0:00:12.4]}
37... Rd8 {[%clk 0:02:28.6]} 38. Nf3 {[%clk 0:00:12.5]} 38... Ra8 {[%clk
0:02:21.9]} 39. Nd2 {[%clk 0:00:10.4]} 39... Rh8 {[%clk 0:02:21.6]} 40. Nf3
{[%clk 0:00:11]} 40... Kf7 {[%clk 0:02:22.1]} 41. Rf1 {[%clk 0:00:11.2]} 41...
Kg6 {[%clk 0:02:21.6]} 42. Nh2 {[%clk 0:00:11.9]} 42... g4 {[%clk 0:02:22.2]}
43. h4 {[%clk 0:00:12.6]} 43... Ra8 {[%clk 0:02:19.2]} 44. Rb1 {[%clk
0:00:13.5]} 44... Nd4+ {[%clk 0:02:18.3]} 45. Nxd4 {[%clk 0:00:13.9]} 45... Bxd4
{[%clk 0:02:20.2]} 46. Nf1 {[%clk 0:00:14.4]} 46... axb3 {[%clk 0:02:21.5]} 47.
axb3 {[%clk 0:00:14.7]} 47... Ra2+ {[%clk 0:02:22.9]} 48. Nd2 {[%clk 0:00:11.3]}
48... f5 {[%clk 0:02:24]} 49. exf5+ {[%clk 0:00:11.5]} 49... Bxf5 {[%clk
0:02:25.9]} 50. Bxf5+ {[%clk 0:00:12.7]} 50... Kxf5 {[%clk 0:02:27.8]} 51. Rf1+
{[%clk 0:00:10]} 51... Ke6 {[%clk 0:02:28.5]} 52. Rd1 {[%clk 0:00:10.1]} 52...
Bc3 {[%clk 0:02:25]} 53. Kd3 {[%clk 0:00:11]} 53... Rxd2+ {[%clk 0:02:23.6]} 54.
Rxd2 {[%clk 0:00:12]} 54... Bxd2 {[%clk 0:02:25.5]} 55. Kxd2 {[%clk 0:00:13.3]}
55... e4 {[%clk 0:02:26.5]} 56. Ke2 {[%clk 0:00:13.1]} 56... Ke5 {[%clk
0:02:25.7]} 57. Ke3 {[%clk 0:00:14.2]} 57... c5 {[%clk 0:02:17.5]} 58. Ke2
{[%clk 0:00:13.9]} 58... Kd4 {[%clk 0:02:17.7]} 59. Kd2 {[%clk 0:00:14.9]} 59...
e3+ {[%clk 0:02:18.8]} 60. Ke2 {[%clk 0:00:06.3]} 60... Ke4 {[%clk 0:02:19.6]}
61. Ke1 {[%clk 0:00:05.9]} 61... Kd3 {[%clk 0:02:21]} 62. Kd1 {[%clk 0:00:06.8]}
62... Kc3 {[%clk 0:02:22.4]} 63. Ke2 {[%clk 0:00:07.8]} 63... Kxb3 {[%clk
0:02:23.8]} 64. Kxe3 {[%clk 0:00:09.5]} 64... Kc2 {[%clk 0:02:24.3]} 65. Kf4
{[%clk 0:00:09.6]} 65... b3 {[%clk 0:02:26.2]} 66. Kg5 {[%clk 0:00:11.5]} 66...
b2 {[%clk 0:02:27]} 67. Kxh5 {[%clk 0:00:13.4]} 67... b1=Q {[%clk 0:02:28.9]}
68. Kxg4 {[%clk 0:00:14.2]} 68... Kc3 {[%clk 0:02:24.8]} 69. Kg5 {[%clk
0:00:11.5]} 69... Kxc4 {[%clk 0:02:26.1]} 70. g4 {[%clk 0:00:12.7]} 70... Kd5
{[%clk 0:02:27.5]} 71. h5 {[%clk 0:00:13.8]} 71... Ke6 {[%clk 0:02:29]} 0-1

[Event "*** Titled Tuesday Blitz"]
[Site "Chess.com"]
[Date "2019.01.01"]
[Round "3"]
[White "essequamvideris"]
[Black "PenguinPacks"]
[Result "1-0"]
[WhiteElo "2363"]
[BlackElo "2204"]
[TimeControl "180+2"]
[EndTime "13:37:30 PST"]
[Termination "essequamvideris won by resignation"]

1. Nf3 {[%clk 0:03:01.9]} 1... Nf6 {[%clk 0:02:59.9]} 2. g3 {[%clk 0:03:03.8]}
2... g6 {[%clk 0:03:00.1]} 3. Bg2 {[%clk 0:03:05.7]} 3... Bg7 {[%clk 0:03:01.5]}
4. O-O {[%clk 0:03:07.6]} 4... O-O {[%clk 0:03:02.8]} 5. c4 {[%clk 0:03:07.2]}
5... c5 {[%clk 0:03:02.9]} 6. Nc3 {[%clk 0:03:08.8]} 6... Nc6 {[%clk 0:03:02.7]}
7. a3 {[%clk 0:03:05.7]} 7... d6 {[%clk 0:02:58.9]} 8. b4 {[%clk 0:03:01.6]}
8... cxb4 {[%clk 0:02:59.5]} 9. axb4 {[%clk 0:03:03.5]} 9... Nxb4 {[%clk
0:03:00.6]} 10. Ba3 {[%clk 0:03:03.1]} 10... Nc6 {[%clk 0:03:01.6]} 11. Qa4
{[%clk 0:03:00.7]} 11... Nd7 {[%clk 0:02:56.9]} 12. Rfb1 {[%clk 0:02:59.9]}
12... Nc5 {[%clk 0:02:51.4]} 13. Bxc5 {[%clk 0:02:54.7]} 13... dxc5 {[%clk
0:02:53.3]} 14. Qb5 {[%clk 0:02:50.4]} 14... Qd6 {[%clk 0:02:24.5]} 15. e3
{[%clk 0:01:58.4]} 15... Bf5 {[%clk 0:01:53.6]} 16. e4 {[%clk 0:01:55.9]} 16...
Be6 {[%clk 0:01:53.4]} 17. Ra3 {[%clk 0:01:53.7]} 17... b6 {[%clk 0:01:51.9]}
18. e5 {[%clk 0:01:52.2]} 18... Qc7 {[%clk 0:01:38]} 19. Re1 {[%clk 0:01:49.6]}
19... Rad8 {[%clk 0:01:34.8]} 20. Ng5 {[%clk 0:01:47.5]} 20... Nd4 {[%clk
0:01:32.9]} 21. Qa4 {[%clk 0:01:45.4]} 21... Bf5 {[%clk 0:01:03.9]} 22. Qxa7
{[%clk 0:01:43.8]} 22... Qxa7 {[%clk 0:01:05]} 23. Rxa7 {[%clk 0:01:45.5]} 23...
Nc2 {[%clk 0:01:06.9]} 24. Nd5 {[%clk 0:01:41.7]} 24... Nxe1 {[%clk 0:01:03.4]}
25. Nxe7+ {[%clk 0:01:28]} 25... Kh8 {[%clk 0:01:04.5]} 26. Nxf5 {[%clk
0:01:28.9]} 26... gxf5 {[%clk 0:01:06.4]} 27. Nxf7+ {[%clk 0:01:29.9]} 27... Kg8
{[%clk 0:01:07.6]} 28. Nxd8 {[%clk 0:01:30.5]} 28... Rxd8 {[%clk 0:01:09.5]} 29.
Bd5+ {[%clk 0:01:31]} 29... Kf8 {[%clk 0:00:58.6]} 30. Rf7+ {[%clk 0:01:29]}
30... Ke8 {[%clk 0:00:47.8]} 31. Rxg7 {[%clk 0:01:29.1]} 31... Nd3 {[%clk
0:00:49.2]} 32. f4 {[%clk 0:01:25.3]} 32... b5 {[%clk 0:00:49.9]} 33. Bc6+
{[%clk 0:01:19.7]} 33... Kf8 {[%clk 0:00:50.3]} 34. Rxh7 {[%clk 0:01:20.9]}
34... b4 {[%clk 0:00:50.3]} 35. Rh8+ {[%clk 0:01:19.4]} 35... Ke7 {[%clk
0:00:51.1]} 36. Rxd8 {[%clk 0:01:19.6]} 36... Kxd8 {[%clk 0:00:51.8]} 37. Ba4
{[%clk 0:01:16.4]} 37... Nc1 {[%clk 0:00:41.9]} 38. Bc2 {[%clk 0:01:15.6]} 38...
b3 {[%clk 0:00:27.2]} 39. Bxf5 {[%clk 0:01:14.1]} 39... b2 {[%clk 0:00:28.2]}
40. Kf2 {[%clk 0:01:07.8]} 40... Nb3 {[%clk 0:00:27.5]} 41. Ke3 {[%clk
0:00:59.8]} 41... Na5 {[%clk 0:00:27]} 42. h4 {[%clk 0:00:52.3]} 42... Nxc4+
{[%clk 0:00:27.6]} 43. Ke2 {[%clk 0:00:52.1]} 43... Na3 {[%clk 0:00:21.3]} 44.
h5 {[%clk 0:00:52.9]} 44... Nb5 {[%clk 0:00:21.4]} 45. Ke3 {[%clk 0:00:50.1]}
45... Ke7 {[%clk 0:00:21.9]} 46. h6 {[%clk 0:00:49.8]} 46... Kf8 {[%clk
0:00:23]} 47. g4 {[%clk 0:00:49.1]} 47... Nd4 {[%clk 0:00:21.6]} 48. Bb1 {[%clk
0:00:45.5]} 48... Nb5 {[%clk 0:00:22.1]} 49. e6 {[%clk 0:00:37.1]} 49... Nd4
{[%clk 0:00:21.7]} 50. f5 {[%clk 0:00:36.2]} 50... Nc6 {[%clk 0:00:21.2]} 51. f6
{[%clk 0:00:31.7]} 51... Ne5 {[%clk 0:00:22.1]} 52. Kf4 {[%clk 0:00:29]} 1-0

[Event "*** Titled Tuesday Blitz"]
[Site "Chess.com"]
[Date "2019.01.01"]
[Round "3"]
[White "Opening_Prep"]
[Black "bugsbunny444"]
[Result "0-1"]
[WhiteElo "2398"]
[BlackElo "2523"]
[TimeControl "180+2"]
[EndTime "13:37:33 PST"]
[Termination "bugsbunny444 won by resignation"]

1. d4 {[%clk 0:03:01.9]} 1... e6 {[%clk 0:03:01.1]} 2. Bf4 {[%clk 0:03:00.4]}
2... Nf6 {[%clk 0:03:01.4]} 3. e3 {[%clk 0:03:00.3]} 3... d5 {[%clk 0:03:02]} 4.
Nc3 {[%clk 0:02:58.9]} 4... a6 {[%clk 0:02:56.1]} 5. g4 {[%clk 0:02:55.7]} 5...
c5 {[%clk 0:02:52.7]} 6. g5 {[%clk 0:02:54.5]} 6... Nfd7 {[%clk 0:02:47.4]} 7.
Nf3 {[%clk 0:02:53.7]} 7... Nc6 {[%clk 0:02:45.3]} 8. Qd2 {[%clk 0:02:50.3]}
8... b5 {[%clk 0:02:37.3]} 9. a3 {[%clk 0:02:42.7]} 9... Be7 {[%clk 0:02:27.6]}
10. h4 {[%clk 0:02:42.3]} 10... Bb7 {[%clk 0:02:10.7]} 11. Rg1 {[%clk
0:02:40.2]} 11... Nb6 {[%clk 0:01:51.1]} 12. h5 {[%clk 0:02:27]} 12... Qd7
{[%clk 0:01:02.1]} 13. Ne5 {[%clk 0:01:33.6]} 13... Nxe5 {[%clk 0:01:02.5]} 14.
Bxe5 {[%clk 0:01:35.5]} 14... O-O {[%clk 0:00:53.4]} 15. g6 {[%clk 0:01:22.1]}
15... f6 {[%clk 0:00:48.2]} 16. gxh7+ {[%clk 0:01:16.6]} 16... Kh8 {[%clk
0:00:49.4]} 17. Bf4 {[%clk 0:01:00.3]} 17... Nc4 {[%clk 0:00:37.9]} 18. Qe2
{[%clk 0:00:24.6]} 18... e5 {[%clk 0:00:30.9]} 19. h6 {[%clk 0:00:11.2]} 19...
g5 {[%clk 0:00:26.4]} 20. dxe5 {[%clk 0:00:11.4]} 20... Nxe5 {[%clk 0:00:18.4]}
21. Bxe5 {[%clk 0:00:09.4]} 21... fxe5 {[%clk 0:00:19.9]} 22. O-O-O {[%clk
0:00:10.7]} 22... Rad8 {[%clk 0:00:12.8]} 23. Bg2 {[%clk 0:00:11.9]} 23... Qe6
{[%clk 0:00:09.2]} 24. e4 {[%clk 0:00:12.9]} 24... d4 {[%clk 0:00:08]} 25. Nd5
{[%clk 0:00:14.3]} 25... Bxd5 {[%clk 0:00:06]} 26. exd5 {[%clk 0:00:16.2]} 26...
Qf6 {[%clk 0:00:07.3]} 27. Be4 {[%clk 0:00:16.2]} 27... Qxf2 {[%clk 0:00:07]}
28. Qd3 {[%clk 0:00:13.2]} 28... Qf4+ {[%clk 0:00:04.2]} 29. Kb1 {[%clk
0:00:13.7]} 29... c4 {[%clk 0:00:04.6]} 30. Qe2 {[%clk 0:00:14.8]} 30... Qf2
{[%clk 0:00:05.7]} 31. Qg4 {[%clk 0:00:15.7]} 31... Qf6 {[%clk 0:00:05.6]} 32.
Qg2 {[%clk 0:00:15.6]} 32... Qd6 {[%clk 0:00:05.9]} 33. Rdf1 {[%clk 0:00:16.6]}
33... Rf4 {[%clk 0:00:06.7]} 34. Rxf4 {[%clk 0:00:17.1]} 34... exf4 {[%clk
0:00:08.6]} 35. Re1 {[%clk 0:00:17.4]} 35... Bf6 {[%clk 0:00:09.8]} 36. Bf3
{[%clk 0:00:18.1]} 36... d3 {[%clk 0:00:09.9]} 37. cxd3 {[%clk 0:00:19]} 37...
Qc5 {[%clk 0:00:09.9]} 38. dxc4 {[%clk 0:00:18.6]} 38... bxc4 {[%clk 0:00:10.8]}
39. Qe2 {[%clk 0:00:18.6]} 39... Qd4 {[%clk 0:00:11.2]} 40. Be4 {[%clk
0:00:19.1]} 40... Rb8 {[%clk 0:00:11.6]} 41. b4 {[%clk 0:00:11.2]} 41... cxb3
{[%clk 0:00:10.7]} 42. Kc1 {[%clk 0:00:09.4]} 42... Rc8+ {[%clk 0:00:07.9]} 0-1

[Event "*** Titled Tuesday Blitz"]
[Site "Chess.com"]
[Date "2019.01.01"]
[Round "3"]
[White "Blitzstream"]
[Black "nurmiTV"]
[Result "1-0"]
[WhiteElo "2558"]
[BlackElo "2610"]
[TimeControl "180+2"]
[EndTime "13:37:36 PST"]
[Termination "Blitzstream won by resignation"]

1. e4 {[%clk 0:03:01.9]} 1... e5 {[%clk 0:02:57.7]} 2. Nf3 {[%clk 0:03:02.8]}
2... Nc6 {[%clk 0:02:58.1]} 3. d4 {[%clk 0:03:03.6]} 3... exd4 {[%clk
0:02:58.3]} 4. Nxd4 {[%clk 0:03:04.4]} 4... Bc5 {[%clk 0:02:59.6]} 5. Be3 {[%clk
0:03:03.1]} 5... Qf6 {[%clk 0:02:59.8]} 6. c3 {[%clk 0:03:03.9]} 6... Nge7
{[%clk 0:02:58.2]} 7. g3 {[%clk 0:03:04.8]} 7... O-O {[%clk 0:02:53.9]} 8. Bg2
{[%clk 0:03:05.2]} 8... d6 {[%clk 0:02:51.1]} 9. O-O {[%clk 0:02:51.1]} 9... Bb6
{[%clk 0:02:38]} 10. Na3 {[%clk 0:02:45.9]} 10... Ne5 {[%clk 0:02:29.4]} 11. h3
{[%clk 0:02:47]} 11... Be6 {[%clk 0:02:00.1]} 12. Kh2 {[%clk 0:02:45.7]} 12...
Nc4 {[%clk 0:01:51.5]} 13. Nxc4 {[%clk 0:02:45.4]} 13... Bxc4 {[%clk 0:01:51.6]}
14. Re1 {[%clk 0:02:45.5]} 14... Rfe8 {[%clk 0:01:46.8]} 15. f4 {[%clk
0:02:40.3]} 15... Nc6 {[%clk 0:01:45.3]} 16. Qd2 {[%clk 0:01:21.6]} 16... Rad8
{[%clk 0:01:27.2]} 17. b3 {[%clk 0:01:18.6]} 17... Ba6 {[%clk 0:01:26.2]} 18.
Rad1 {[%clk 0:01:17.7]} 18... h6 {[%clk 0:01:18.6]} 19. g4 {[%clk 0:01:08.4]}
19... Nxd4 {[%clk 0:01:07.4]} 20. cxd4 {[%clk 0:01:06.5]} 20... c6 {[%clk
0:01:03.5]} 21. Qf2 {[%clk 0:00:59.7]} 21... Ba5 {[%clk 0:01:00.8]} 22. Rg1
{[%clk 0:00:56.5]} 22... Bc7 {[%clk 0:01:00.5]} 23. h4 {[%clk 0:00:55.9]} 23...
b6 {[%clk 0:00:33.7]} 24. g5 {[%clk 0:00:48.1]} 24... hxg5 {[%clk 0:00:33.3]}
25. hxg5 {[%clk 0:00:48.6]} 25... Qg6 {[%clk 0:00:34.3]} 26. Bf3 {[%clk
0:00:47.8]} 26... Rxe4 {[%clk 0:00:32]} 27. Bxe4 {[%clk 0:00:48]} 27... Qxe4
{[%clk 0:00:33.9]} 28. d5 {[%clk 0:00:44.9]} 28... cxd5 {[%clk 0:00:26.3]} 29.
Bd4 {[%clk 0:00:45.3]} 29... Qf5 {[%clk 0:00:22.6]} 30. Kg3 {[%clk 0:00:39.9]}
30... Re8 {[%clk 0:00:21.4]} 31. Rge1 {[%clk 0:00:38.5]} 31... Re4 {[%clk
0:00:22.9]} 32. Rc1 {[%clk 0:00:31.4]} 32... Bd8 {[%clk 0:00:22.9]} 33. b4
{[%clk 0:00:21.8]} 33... Bc4 {[%clk 0:00:22]} 34. Rxe4 {[%clk 0:00:20.9]} 34...
Qxe4 {[%clk 0:00:07.6]} 35. Re1 {[%clk 0:00:21.7]} 35... Qd3+ {[%clk 0:00:07.4]}
36. Re3 {[%clk 0:00:22.6]} 36... Qd1 {[%clk 0:00:03.8]} 37. Re8+ {[%clk
0:00:22.1]} 37... Kh7 {[%clk 0:00:05.4]} 38. Rxd8 {[%clk 0:00:15.5]} 38... Bd3
{[%clk 0:00:06.6]} 39. f5 {[%clk 0:00:07.6]} 39... Qh5 {[%clk 0:00:03.6]} 40.
Qh2 {[%clk 0:00:08.6]} 40... Qxh2+ {[%clk 0:00:04.6]} 41. Kxh2 {[%clk
0:00:10.5]} 41... Bxf5 {[%clk 0:00:06.2]} 42. Rxd6 {[%clk 0:00:10.3]} 42... Be4
{[%clk 0:00:05.9]} 43. Rd7 {[%clk 0:00:11.5]} 43... a5 {[%clk 0:00:07.4]} 44. b5
{[%clk 0:00:11.9]} 44... a4 {[%clk 0:00:08.2]} 45. Bxb6 {[%clk 0:00:12.8]} 45...
Kg6 {[%clk 0:00:09]} 46. Bd4 {[%clk 0:00:12.7]} 46... Kxg5 {[%clk 0:00:09.7]}
47. b6 {[%clk 0:00:14.1]} 47... Bf5 {[%clk 0:00:09]} 48. Rxd5 {[%clk 0:00:14.2]}
1-0

[Event "*** Titled Tuesday Blitz"]
[Site "Chess.com"]
[Date "2019.01.01"]
[Round "3"]
[White "Winehouse83"]
[Black "GrigorGrigorov"]
[Result "0-1"]
[WhiteElo "2402"]
[BlackElo "2785"]
[TimeControl "180+2"]
[EndTime "13:37:37 PST"]
[Termination "GrigorGrigorov won by resignation"]

1. d4 {[%clk 0:03:01.9]} 1... Nf6 {[%clk 0:03:00.4]} 2. c4 {[%clk 0:03:02.8]}
2... e6 {[%clk 0:03:01.8]} 3. Nf3 {[%clk 0:03:03.5]} 3... d5 {[%clk 0:03:02.3]}
4. Nc3 {[%clk 0:03:03.7]} 4... Bb4 {[%clk 0:03:02.6]} 5. cxd5 {[%clk 0:03:03.4]}
5... exd5 {[%clk 0:03:03.1]} 6. Bg5 {[%clk 0:03:03.8]} 6... h6 {[%clk
0:02:55.2]} 7. Bxf6 {[%clk 0:03:03.9]} 7... Qxf6 {[%clk 0:02:55.6]} 8. e3 {[%clk
0:03:04.1]} 8... c6 {[%clk 0:02:51.3]} 9. Be2 {[%clk 0:02:56.7]} 9... O-O {[%clk
0:02:51.8]} 10. O-O {[%clk 0:02:57.7]} 10... Re8 {[%clk 0:02:44.3]} 11. Ne5
{[%clk 0:02:53.7]} 11... Nd7 {[%clk 0:02:41.7]} 12. f4 {[%clk 0:02:54]} 12...
Nf8 {[%clk 0:02:42.4]} 13. Bh5 {[%clk 0:02:40.5]} 13... g6 {[%clk 0:02:39]} 14.
Bg4 {[%clk 0:02:34.6]} 14... Bf5 {[%clk 0:02:30.9]} 15. Bxf5 {[%clk 0:02:26.2]}
15... Qxf5 {[%clk 0:02:31.6]} 16. g4 {[%clk 0:02:25.7]} 16... Qf6 {[%clk
0:02:31.7]} 17. Qb3 {[%clk 0:02:14.9]} 17... Qe7 {[%clk 0:02:30.9]} 18. Rae1
{[%clk 0:02:09.6]} 18... Bxc3 {[%clk 0:02:24.2]} 19. bxc3 {[%clk 0:02:07.8]}
19... f6 {[%clk 0:02:03.7]} 20. Nd3 {[%clk 0:02:08.2]} 20... Kg7 {[%clk
0:01:59.2]} 21. a4 {[%clk 0:02:04.9]} 21... Qc7 {[%clk 0:01:52.5]} 22. c4 {[%clk
0:02:02.2]} 22... dxc4 {[%clk 0:01:44.7]} 23. Qxc4 {[%clk 0:02:04.1]} 23... Qf7
{[%clk 0:01:45.8]} 24. Qc3 {[%clk 0:01:51.1]} 24... Kh7 {[%clk 0:01:38.1]} 25.
e4 {[%clk 0:01:46.5]} 25... Rad8 {[%clk 0:01:37.8]} 26. f5 {[%clk 0:01:43.3]}
26... g5 {[%clk 0:01:36]} 27. Nb4 {[%clk 0:01:23.5]} 27... Qd7 {[%clk
0:01:07.5]} 28. Nc2 {[%clk 0:01:23]} 28... c5 {[%clk 0:01:05.7]} 29. dxc5 {[%clk
0:01:14.6]} 29... Qxa4 {[%clk 0:01:05.8]} 30. Qxf6 {[%clk 0:01:09.8]} 30... Qxc2
{[%clk 0:01:05.7]} 31. Qf7+ {[%clk 0:01:01.7]} 31... Kh8 {[%clk 0:01:06.4]} 32.
Rf3 {[%clk 0:00:58.8]} 32... Qxc5+ {[%clk 0:00:59.6]} 33. Kh1 {[%clk 0:00:58.6]}
33... Qe7 {[%clk 0:00:50.8]} 34. Qxe7 {[%clk 0:00:38.9]} 34... Rxe7 {[%clk
0:00:51.7]} 35. e5 {[%clk 0:00:39.7]} 35... Nh7 {[%clk 0:00:32.2]} 36. f6 {[%clk
0:00:19.1]} 36... Re6 {[%clk 0:00:32.5]} 37. Rf5 {[%clk 0:00:12]} 37... Rde8
{[%clk 0:00:28.3]} 38. Rc1 {[%clk 0:00:09.4]} 38... Rc6 {[%clk 0:00:17.7]} 39.
Rd1 {[%clk 0:00:07.3]} 39... Nf8 {[%clk 0:00:12.2]} 40. f7 {[%clk 0:00:08.3]}
40... Re7 {[%clk 0:00:12.4]} 41. Rd8 {[%clk 0:00:08.2]} 41... Kg7 {[%clk
0:00:13.5]} 42. Rf6 {[%clk 0:00:09.6]} 42... Rxe5 {[%clk 0:00:10.3]} 43. Rxc6
{[%clk 0:00:05.9]} 43... bxc6 {[%clk 0:00:11]} 44. Re8 {[%clk 0:00:07.8]} 44...
Rd5 {[%clk 0:00:10.7]} 45. Kg2 {[%clk 0:00:09]} 45... Rd7 {[%clk 0:00:11.5]} 46.
Ra8 {[%clk 0:00:10.9]} 46... Rxf7 {[%clk 0:00:12.4]} 0-1

[Event "*** Titled Tuesday Blitz"]
[Site "Chess.com"]
[Date "2019.01.01"]
[Round "3"]
[White "MehdiHosseinipour"]
[Black "severomorskij"]
[Result "1-0"]
[WhiteElo "2570"]
[BlackElo "2750"]
[TimeControl "180+2"]
[EndTime "13:37:51 PST"]
[Termination "MehdiHosseinipour won by resignation"]

1. e4 {[%clk 0:03:01.9]} 1... c5 {[%clk 0:03:00.8]} 2. Nf3 {[%clk 0:03:02.8]}
2... Nc6 {[%clk 0:03:02]} 3. d4 {[%clk 0:03:04.2]} 3... cxd4 {[%clk 0:03:03.3]}
4. Nxd4 {[%clk 0:03:06.1]} 4... Nf6 {[%clk 0:03:04.7]} 5. Nc3 {[%clk 0:03:07.3]}
5... e5 {[%clk 0:03:05.9]} 6. Ndb5 {[%clk 0:03:08.6]} 6... d6 {[%clk 0:03:07.2]}
7. Bg5 {[%clk 0:03:10.2]} 7... a6 {[%clk 0:03:08.5]} 8. Na3 {[%clk 0:03:11.7]}
8... b5 {[%clk 0:03:10]} 9. Nd5 {[%clk 0:03:13.3]} 9... Be7 {[%clk 0:03:11.1]}
10. Bxf6 {[%clk 0:03:14.9]} 10... Bxf6 {[%clk 0:03:12.7]} 11. c4 {[%clk
0:03:16.5]} 11... b4 {[%clk 0:03:13.7]} 12. Nc2 {[%clk 0:03:18.1]} 12... O-O
{[%clk 0:03:14.8]} 13. g3 {[%clk 0:03:15.4]} 13... Bg5 {[%clk 0:03:14.8]} 14. h4
{[%clk 0:03:16.4]} 14... Bh6 {[%clk 0:03:15.8]} 15. Bh3 {[%clk 0:03:17.4]} 15...
Be6 {[%clk 0:03:16.6]} 16. b3 {[%clk 0:03:15.7]} 16... a5 {[%clk 0:03:16.5]} 17.
Kf1 {[%clk 0:03:16.7]} 17... Nb8 {[%clk 0:03:02.9]} 18. Kg2 {[%clk 0:03:14.8]}
18... Nd7 {[%clk 0:03:04]} 19. Qf3 {[%clk 0:02:38]} 19... Bxd5 {[%clk
0:03:01.5]} 20. cxd5 {[%clk 0:02:34.9]} 20... Rc8 {[%clk 0:03:01.2]} 21. Qe2
{[%clk 0:02:29]} 21... Rc3 {[%clk 0:02:48.6]} 22. Ne1 {[%clk 0:02:13.7]} 22...
Qc7 {[%clk 0:02:46.7]} 23. Rf1 {[%clk 0:01:57]} 23... Nf6 {[%clk 0:02:33.3]} 24.
Nd3 {[%clk 0:01:50.6]} 24... Rc2 {[%clk 0:02:19.2]} 25. Qf3 {[%clk 0:01:51.4]}
25... Qc3 {[%clk 0:02:20.1]} 26. g4 {[%clk 0:01:34.7]} 26... Bf4 {[%clk
0:02:08.5]} 27. g5 {[%clk 0:01:30.6]} 27... Nh5 {[%clk 0:01:34.3]} 28. Bg4
{[%clk 0:01:24.7]} 28... Ng3 {[%clk 0:01:33.8]} 29. Rfd1 {[%clk 0:01:18.9]}
29... Ne2 {[%clk 0:01:02.8]} 30. Ne1 {[%clk 0:01:13.9]} 30... Rb2 {[%clk
0:00:29.5]} 31. Nd3 {[%clk 0:00:43.8]} 31... Nd4 {[%clk 0:00:29.7]} 32. Qh3
{[%clk 0:00:44.3]} 32... Rc2 {[%clk 0:00:19.1]} 33. Nxf4 {[%clk 0:00:42.5]}
33... exf4 {[%clk 0:00:08.8]} 34. Qxc3 {[%clk 0:00:42.7]} 34... Rxc3 {[%clk
0:00:07.7]} 35. Rxd4 {[%clk 0:00:44.3]} 35... g6 {[%clk 0:00:08.4]} 36. Rdd1
{[%clk 0:00:43.4]} 36... Re8 {[%clk 0:00:08.2]} 37. Re1 {[%clk 0:00:39.5]} 37...
Re7 {[%clk 0:00:09]} 38. Rac1 {[%clk 0:00:35.7]} 38... Rec7 {[%clk 0:00:09.9]}
39. Rxc3 {[%clk 0:00:37.1]} 39... Rxc3 {[%clk 0:00:10]} 40. e5 {[%clk
0:00:37.7]} 40... dxe5 {[%clk 0:00:10.9]} 41. Rxe5 {[%clk 0:00:38.8]} 41... Rd3
{[%clk 0:00:11.6]} 42. Kf1 {[%clk 0:00:39.5]} 42... f3 {[%clk 0:00:11.9]} 43.
Ke1 {[%clk 0:00:38.7]} 43... h5 {[%clk 0:00:12.7]} 44. gxh6 {[%clk 0:00:39.6]}
44... f5 {[%clk 0:00:14.1]} 45. Bh3 {[%clk 0:00:36.1]} 45... Kh7 {[%clk
0:00:07.6]} 46. h5 {[%clk 0:00:37.1]} 46... Kxh6 {[%clk 0:00:05.2]} 47. hxg6
{[%clk 0:00:38.6]} 47... a4 {[%clk 0:00:04.7]} 48. Bxf5 {[%clk 0:00:36]} 48...
axb3 {[%clk 0:00:05.9]} 49. axb3 {[%clk 0:00:33]} 49... Rxb3 {[%clk 0:00:07.1]}
50. d6 {[%clk 0:00:33.8]} 50... Ra3 {[%clk 0:00:03.1]} 51. d7 {[%clk 0:00:34.3]}
51... Ra8 {[%clk 0:00:04]} 52. Re8 {[%clk 0:00:35.4]} 52... Ra1+ {[%clk
0:00:04.3]} 53. Kd2 {[%clk 0:00:36.6]} 1-0